Cogmind - Beta 13 @@@ ROGUE MODE // 2024.04.09 @ 20:30:12 Player: Andru7428 Result: Destroyed by 94-G7R(R) with Subdweller Shrapnel Launcher Performance ------------- Evolutions (0) 0 Regions Visited (2) 400 Robots Destroyed (35) 175 Value Destroyed (970) 970 Prototype IDs (10) 200 Alien Tech Used (0) 0 Bonus (-181) -181 TOTAL SCORE: 1564 Bonus ------- Friendly Fire -181 Cogmind --------- Core Integrity 0/250 Matter 269/300 Energy 265/265 System Corruption 0% Temperature Cool (0) Movement Treading (160) Location -10/Subcaves Parts ------- > --- POWER (1) -------- Improved Ion Engine > --- PROPULSION (2) --- Light Treads Subdweller Monowheel > --- UTILITY (2) ------ (None) > --- WEAPON (2) ------- Subdweller Machine Gun Subdweller Machine Gun > --- INVENTORY (5) ---- Myomer Leg Seismic Detector Gun Armor Mini Grenade Launcher Hammer Peak State ------------ > --- POWER ------------ Improved Ion Engine > --- PROPULSION ------- Subdweller Monowheel Subdweller Monowheel > --- UTILITY ---------- Scrap Shield > --- WEAPON ----------- Subdweller Machine Gun Subdweller Machine Gun > --- INVENTORY -------- Subdweller Monowheel Shotgun Mini Grenade Launcher Scrap Shield Fragment Scrap Shield Fragment [Rating: 15] Favorites ----------- Power Improved Ion Engine Engine Improved Ion Engine Propulsion Light Treads Treads Light Treads Leg Aluminum Leg Wheel Subdweller Monowheel Utility Scrap Shield Device Seismic Detector Storage High-capacity Storage Unit Protection Scrap Shield Weapon Subdweller Machine Gun Energy Gun Medium Laser Energy Cannon Subdweller Beam Cannon Ballistic Gun Subdweller Machine Gun Launcher Mini Grenade Launcher Impact Weapon Hammer Build | -11 -10 -10 ------- Run | Yrd Mat Sub Slots Evolved . | . . . Power . | . . . Propulsion . | . . . Utility . | . . . Weapon . | . . . Parts Attached 46 | 7 16 23 Power 4 | 1 3 . Engine 4 | 1 3 . Core . | . . . Reactor . | . . . Propulsion 10 | 2 2 6 Treads 3 | . 2 1 Leg 2 | 2 . . Wheel 5 | . . 5 Hover . | . . . Flight . | . . . Utility 9 | 2 3 4 Device 2 | 1 . 1 Storage 2 | 1 1 . Processor . | . . . Hackware . | . . . Protection 5 | . 2 3 Artifact . | . . . Weapon 23 | 2 8 13 Energy Gun 2 | 1 . 1 Energy Cannon 1 | . . 1 Ballistic Gun 16 | 1 6 9 Ballistic Cannon . | . . . Launcher 3 | . 2 1 Special Weapon . | . . . Impact Weapon 1 | . . 1 Slashing Weapon . | . . . Piercing Weapon . | . . . Special Melee Weapon . | . . . Unidentified Prototypes . | . . . Parts Lost 1 | . . 1 Power . | . . . Propulsion . | . . . Utility 1 | . . 1 Weapon . | . . . Highest Loss Streak 1 | . . 1 To Critical Strikes . | . . . Average Slot Usage (%) 90 | . 98 84 Engine 14 | . 14 14 Treads 19 | . 27 13 Wheel 8 | . . 14 Storage 5 | . 14 . Protection 12 | . 11 13 Ballistic Gun 27 | . 27 27 Naked Turns . | . . . Heaviest Build 62 | 12 62 62 Greatest Support 40 | 20 40 40 Greatest Overweight (x) 2 | 2 1 1 Average Overweight (x) . | . . . Largest Inventory Capacity 20 | 8 20 20 Average Capacity 10 | 7 19 5 Most Carried 20 | 6 20 20 Average Carried 10 | 4 17 4 Final Capacity 20 | 8 20 5 Final Carried 20 | 6 20 5 Class Distribution -------------------- 54% | Subdweller-Mutant 42% | Mutant Dominant Class ---------------- Mutant | -10/Materials Subdweller-Mutant | -10/Subcaves Resources | -11 -10 -10 ----------- Run | Yrd Mat Sub Matter Collected 1245 | 239 546 460 Remotely . | . . . Salvage Created 1143 | 24 464 655 Parts 72 | 4 32 36 Haulers Intercepted 2 | . 2 . Recyclers Shooed . | . . . Parts Field Recycled . | . . . Retrieved Matter . | . . . Parts Self-Destructed 12 | . . 12 Prevented . | . . . Kills | -11 -10 -10 ------- Run | Yrd Mat Sub Combat Hostiles Destroyed 28 | . 15 13 Guns 18 | . 9 9 AOE 10 | . 6 4 Classes Destroyed 9 | 1 7 1 Worker 1 | . 1 . Builder 1 | . 1 . Tunneler 1 | 1 . . Hauler 2 | . 2 . Watcher 1 | . 1 . Swarmer 6 | . 6 . Grunt 6 | . 6 . Subdweller 16 | . 3 13 Guerrilla 1 | . . 1 Best Kill Streak 5 | 1 5 5 Combat Bots Only 5 | . 4 5 Max Kills in Single Turn 4 | 1 3 4 Gunslinging 1 | . . 1 Exploded 4 | . 3 4 Melee . | . . . Uniques/NPCs Destroyed . | . . . Combat | -11 -10 -10 -------- Run | Yrd Mat Sub Hostile Shots Fired 125 | . 65 60 Missed 41 | . 21 20 Damage Taken 1795 | . 684 1111 Core 266 | . 150 116 Absorbed by Shields . | . . . Core Remaining (%) 100 | 100 . . Volleys Fired 106 | 5 33 68 Largest 2 | 2 2 2 Hottest 70 | 70 70 60 Shots Fired 203 | 10 64 129 Gun 200 | 10 62 128 Cannon . | . . . Launcher 3 | . 2 1 Special . | . . . Kinetic 193 | 5 60 128 Thermal 7 | 5 2 . Explosive 3 | . 2 1 Electromagnetic . | . . . Robot Hit Streak 18 | 3 18 16 Robot Miss Streak 5 | 3 5 3 Penetration Max . | . . . Secondary Targets 1 | . . 1 Max Gunslinging Chain 1 | . . 1 Shots Hit Robots 114 | 5 48 61 Core Hits 65 | 2 36 27 Critical Kills . | . . . Critical Parts Destroyed 2 | . . 2 Critical Strikes 7 | . . 7 Destroy 5 | . . 5 Smash 2 | . . 2 Melee Attacks 4 | . . 4 Impact 4 | . . 4 Slashing . | . . . Piercing . | . . . Sneak Attacks . | . . . Combat Hostiles . | . . . Follow-up Attacks . | . . . Damage Inflicted 3058 | 44 1237 1777 Guns 2020 | 44 779 1197 Cannons . | . . . Explosions 816 | . 456 360 Melee 220 | . . 220 Ramming 2 | . 2 . Kinetic 1995 | 31 767 1197 Thermal 25 | 13 12 . Explosive 816 | . 456 360 Electromagnetic . | . . . Impact 220 | . . 220 Slashing . | . . . Piercing . | . . . Highest Corruption . | . . . Average Corruption . | . . . Corruption Purged . | . . . Corruption Blocked . | . . . Overload Shots . | . . . Overflow Damage 137 | . 7 130 Projectiles . | . . . Explosions 7 | . 7 . Melee 130 | . . 130 Knockbacks 1 | . . 1 Impact 1 | . . 1 Kinetic . | . . . Secondary . | . . . Self-Inflicted Damage 53 | . 53 . Shots 2 | . 2 . Rammed 1 | . 1 . Targets Rammed 1 | . 1 . Kicked . | . . . Crushed . | . . . Highest Temperature 90 | 90 40 . Average Temperature 21 | 53 8 . Received Heat Transfer 159 | . 141 18 Siege Activations . | . . . Robots Corrupted . | . . . Combat Hostiles . | . . . Parts Fried 3 | . . 3 Impact Corruptions 3 | . . 3 Robots Melted . | . . . Combat Hostiles . | . . . Parts Melted 1 | . 1 . Heat Transferred 74 | 37 37 . Parts Sabotaged . | . . . Parts Stolen . | . . . Parts Stripped . | . . . Power Chain Reactions . | . . . Alert | -11 -10 -10 ------- Run | Yrd Mat Sub Peak Influence 340 | 5 340 . Initial 3 | . 3 . Average 116 | . 124 . Maximum Alert Level 1 | . 1 . Low Security (%) 69 | 100 67 . Level 1 30 | . 32 . Level 2 . | . . . Level 3 . | . . . Level 4 . | . . . Level 5 . | . . . High Security . | . . . Max Security . | . . . Squads Dispatched 2 | . 2 . Investigation . | . . . Extermination . | . . . Reinforcement 2 | . 2 . Assault . | . . . Garrison . | . . . Intercept . | . . . Searches Triggered . | . . . Construction Impeded . | . . . Haulers Reinforced . | . . . Active Scanning Responses . | . . . Cargo Convoy Interrupts . | . . . Stealth | -11 -10 -10 --------- Run | Yrd Mat Sub Distress Signals 3 | . 3 . Communications Jammed . | . . . Distress Signals . | . . . Times Spotted 52 | . 29 23 Peak Tracking Total 7 | . 5 7 Tactical Retreats 3 | . 3 . Traps | -11 -10 -10 ------- Run | Yrd Mat Sub Traps Triggered 1 | . . 1 Indirectly . | . . . Trap Hack Attempts . | . . . Triggered . | . . . Disarmed . | . . . Reprogrammed . | . . . Reused . | . . . Traps Extracted . | . . . Installed . | . . . Triggered . | . . . Machines | -11 -10 -10 ---------- Run | Yrd Mat Sub Machines Disabled 3 | . 2 1 Max in Single Turn 2 | . 2 1 Machines Repaired . | . . . Machines Dismantled . | . . . Machines Sabotaged . | . . . Overloaded Fab Kills . | . . . Hacking | -11 -10 -10 --------- Run | Yrd Mat Sub Machines Accessed 3 | . 1 2 Terminals 1 | . 1 . Fabricators . | . . . Repair Stations . | . . . Recycling Units . | . . . Scanalyzers . | . . . Garrison Access . | . . . Total Hacks 18 | . 6 12 Successful 15 | . 3 12 Failed 3 | . 3 . Catastrophic . | . . . Database Lockouts . | . . . Manual 4 | . 4 . Terminals 6 | . 6 . Fabricators . | . . . Repair Stations . | . . . Recycling Units . | . . . Scanalyzers . | . . . Garrison Access . | . . . Terminal Hacks 14 | . 2 12 Record 11 | . . 11 Robot Analysis 1 | . 1 . Hauler Manifests 1 | . 1 . Derelict Proto ID Bank 1 | . . 1 Fabricator Hacks . | . . . Repair Station Hacks . | . . . Recycling Unit Hacks . | . . . Scanalyzer . | . . . Garrison Access Hacks . | . . . Unauthorized Hacks 1 | . 1 . Terminals 1 | . 1 . Botnet 1 | . 1 . Fabricators . | . . . Repair Stations . | . . . Recycling Units . | . . . Scanalyzers . | . . . Garrison Access . | . . . Data Cores Recovered . | . . . Used . | . . . Hacking Detections 1 | . 1 . Full Trace Events . | . . . Feedback Events . | . . . Feedback Blocked . | . . . Robot Schematics Acquired . | . . . Robots Built . | . . . Authchips . | . . . Time . | . . . Total Robot Build Rating . | . . . Part Schematics Acquired . | . . . Parts Built . | . . . Authchips . | . . . Time . | . . . Total Part Build Rating . | . . . Parts Repaired . | . . . Time . | . . . Parts Recycled . | . . . Recycled Matter . | . . . Retrieved Matter . | . . . Retrieved Components . | . . . Parts Scanalyzed . | . . . Part Schematics Acquired . | . . . Parts Damaged . | . . . Bothacking | -11 -10 -10 ------------ Run | Yrd Mat Sub Used RIF Installer . | . . . Robots Hacked . | . . . Non-combat . | . . . Combat . | . . . Robot Hacks Applied . | . . . Relay Couplers Released . | . . . Fabnet Peak Effective % . | . . . Robots Rewired . | . . . Allies Hacked . | . . . Hacks Repelled . | . . . Allies | -11 -10 -10 -------- Run | Yrd Mat Sub Total Allies . | . . . Largest Group . | . . . Highest-Rated Group . | . . . Highest-Rated Ally . | . . . Total Orders . | . . . Ally Attacks . | . . . Total Damage . | . . . Kills . | . . . Allies Corrupted . | . . . Allies Melted . | . . . Intel | -11 -10 -10 ------- Run | Yrd Mat Sub Robot Analysis Total 1 | . 1 . Derelict Logs Recovered 1 | . . 1 Drone Launches . | . . . Drone Recoveries . | . . . Exploration | -11 -10 -10 ------------- Run | Yrd Mat Sub Turns Passed 3510 | 91 1410 2009 Spaces Moved 1947 | 52 506 1389 Core 20 | 20 . . Treads 627 | . 497 130 Legs 41 | 32 9 . Wheels 1259 | . . 1259 Hover . | . . . Flight . | . . . Fastest Speed 50 | 50 120 110 Average Speed 151 | 118 233 123 Slowest Speed 240 | 150 240 240 Overloaded Moves . | . . . Propulsion Burnouts . | . . . Robots Hopped . | . . . Cave-ins Triggered . | . . . Exploration Rate (%) 40 | 4 55 61 Regions Visited 2 Branch Regions 1 Pre-discovered Areas 1 | . . 1 Known Exits Taken . | . . . Unknown Exits Taken 2 | 1 1 . Scrap Searched 6 | . . 6 Spaces Dug . | . . . Terrain Destroyed 51 | . 41 10 Melee . | . . . Projectile . | . . . AOE 51 | . 41 10 Terrain Rammed . | . . . Walls Destroyed . | . . . Machines Disabled . | . . . Actions | -11 -10 -10 --------- Run | Yrd Mat Sub Total 2300 | 69 680 1551 Wait 84 | . 71 13 Move 1945 | 51 505 1389 Hop . | . . . Pick Up 48 | 6 30 12 Fast Attach 21 | 7 3 11 Attach 4 | . 2 2 Detach 3 | . 3 . Swap 21 | . 11 10 Drop 51 | . 21 30 Fire 106 | 5 33 68 Melee 4 | . . 4 Ram . | . . . Kick . | . . . Crush 1 | . 1 . Escape Stasis . | . . . Rewire . | . . . Trap . | . . . Miscellaneous 12 | . . 12 Route ------- -11/Scrapyard -10/Materials (discovered 2 exits: [*Min] / *Sub) -10/Subcaves History --------- Turn | Location | Event 25 | -11/Scrapyard | Discovered new exit (range 15) 92 | -11/Scrapyard | Entered Materials 324 | -10/Materials | Build established: Mutant 603 | -10/Materials | Discovered new exit (range 9) 800 | -10/Materials | Derelicts attacked the area 999 | -10/Materials | Core integrity fell below 50% 1478 | -10/Materials | Discovered new exit (range 8) 1502 | -10/Materials | Entered Subcaves 1547 | -10/Subcaves | Shifting Twisted Machinery released Sub. Laser 1565 | -10/Subcaves | Shifting Twisted Machinery released Sub. Power Source 1567 | -10/Subcaves | Learned location of Mines (-10) 1671 | -10/Subcaves | Ambushed by swarm of Subdwellers 1671 | -10/Subcaves | Ambushed by Subdwellers from Twisted Machinery 1671 | -10/Subcaves | Ambushed by Subdwellers from Twisted Machinery 1676 | -10/Subcaves | Ambushed by Subdwellers from Twisted Machinery 1812 | -10/Subcaves | Build established: Subdweller-Mutant 1907 | -10/Subcaves | A swath of the cavern ceiling suddenly collapsed 2096 | -10/Subcaves | Shifting Twisted Machinery released Shrapnel Trap 2138 | -10/Subcaves | Visited Clippyterm 2439 | -10/Subcaves | Visited 4L-MR0's lab 2456 | -10/Subcaves | Found Gun Armor 3105 | -10/Subcaves | Shifting Twisted Machinery released Piercing Trap 3114 | -10/Subcaves | Shifting Twisted Machinery released Sub. Laser 3115 | -10/Subcaves | Shifting Twisted Machinery released Battle Rifle 3481 | -10/Subcaves | Ambushed by Subdweller buried in earth 3508 | -10/Subcaves | Core integrity fell below 20% 3511 | -10/Subcaves | Destroyed by 94-G7R(R) with Subdweller Shrapnel Launcher Last Messages --------------- 03329_ Acquired Sub. Beam Cannon. 03330_ Dropped Sub. Beam Cannon. 03332_ Acquired Sub. Machine Gun. 03343_ Acquired 7 matter. 03344_ Acquired 15 matter. 03414_ Acquired 12 matter. 03452_ P3-M85(R) destroyed. 03452_ Switching to secondary target: TD-BXS(R). 03452_ TD-BXS(R) destroyed. 03463_ Scrap Shield Fragment affixed to Scrap Shield (+38). 03464_ Acquired 12 matter. 03470_ Dropped Sub. Machine Gun. 03471_ Acquired 10 matter. 03482_ 61-Z8H(R): "ARGHSUB!" 03489_ 61-Z8H(R) affixes Scrap Shield Fragment to Scrap Shield. 03492_ 61-Z8H(R) destroyed. 03495_ 94-G7R(R) suffers critical hit (Destroy). 03502_ Scrap Shield destroyed. Map ----- +----------------------------------------------------+ | ??????????????????????????????# ##### ####? | | ????????????????????????????????# # ##??? | | ???????????????????????????????## #??? | | ???????????????????????????????# ## # #??? | | ???????????????????????????????### #######?## | | ?????????????????????????????????# ##??????# | | ?????????????????????????????????# ##?????## | | ???????????????????????????? ??## ##???## | | ???????????????????????????# ??# ##??# | | ??????????????????????????? ??# ##?# | | ??????????????????????????# ??# ### | | ??????????????????????????# ??# ##] ## # | | ????????????????????????### #?## ## # | | ?????????????????????#### R ### | | ?????????????????????" ## ### | | ?????????????????????? ?#### ### | | ?????????????????????? #????# ## | | ??????????????????????? ;#????# ## | | ??????????????????????? ;#????## ## ## | | ?????????????????????#?? ;; ##???## #### ##? | | ????????????????????##;?; #???# #?## #? | | ???????????????????## ;## #???## ##??# ##? | | ???????????????????#; ##??#" #???# ## | | ??????????????????## #??# ##### # | | ?????????????????## = ##### ### | | ?????????????##### @ ;# % | | ????????????## ; | | ????????????# # % # | | ????????????# ###; ####### | | ???????????## #?# #?# # | | ???????????# #?##; ;; ##?# ## | | ???????????## #??### ;## ; #??# ##? | | ????????????# ###???# ###### #?## #####?? | | ????????????# #?????##% ##????## #?# #?????? | | ????????????## ##??### ##???### ### ##????? | | ????????????# #?## # ##??# #????? | | ??????????### ### #??# #????? | | ??????????# #??## ###????? | | ??? ### ##???#### ##??????? | | ? ##?## ###???????# ##???????? | | ?# # # # ######???####?????????# ##????????? | | ??###??#?####??????????????????????#####?????????? | | ?????????????????????????????????????????????????? | | ?????????????????????????????????????????????????? | | ?????????????????????????????????????????????????? | | ?????????????????????????????????????????????????? | | ?????????????????????????????????????????????????? | | ?????????????????????????????????????????????????? | | ?????????????????????????????????????????????????? | | ?????????????????????????????????????????????????? | +----------------------------------------------------+ Best States ------------- Heat Dissipation 25 Energy Generation 12 Energy Capacity 265 Matter Stores 300 Matter Capacity 300 Sight Range 16 Terrain Scan Density 10 Armor Coverage 800 Evasion (%) 55 Recoil Reduction 2 Item Schematics ----------------- None Robot Schematics ------------------ None Fabricated ------------ Nothing Alien Tech Used ----------------- None Achievements -------------- None Challenges ------------ None Game ------ Seed FluxPlatingPlatform Manual? 0 Play Time 00:39:41 Cumulative 179.6 hours Start 2024.04.09 @ 19:22:08 End 2024.04.09 @ 20:30:12 Sessions 1 Manual Loads 0 Difficulty Rogue Special Mode None Game No. 138 Rogue 138 Adventurer 0 Explorer 0 Win Type - Total 3 Types 3/0/0/0/0/0/0/0/0 Lore% 61 Gallery% 70 Achievement% 60 Wizard Run 0 Options --------- Layout 1 ASCII 0 Keyboard 1 Movement Numpad Keybinds 0 Fullscreen 1 Font 24/Smallcaps Map View 50x35 Zoom Use 0% Tactical HUD 1 Map Filters NONE Filters NONE Steam 1 RUN: 764a4d30-ca6b-4dce-abcf-e7f65b766202